fUSD/lending_fUSD_20240210
["ID","MTS","AMOUNT","RATE_DAILY","PERIOD"]
[313693559,1707587456517,-500.0,0.00040547,30]
[313693560,1707587456552,-798.83,0.00040547,30]
[313693561,1707587456586,-500.0,0.00040547,30]
[313693562,1707587456620,-409.23156357,0.00040547,30]
[313693563,1707587456655,-500.0,0.00040547,30]
[313693564,1707587456689,-1555.02,0.00040547,30]
[313693565,1707587456725,-1157.65,0.00040547,30]
[313693566,1707587456760,-626.18,0.00040547,30]
[313693567,1707587456794,-571.81,0.00040547,30]
[313693568,1707587456828,-565.78,0.00040547,30]
[313693569,1707587456864,-500.0,0.00040547,30]
[313693570,1707587457100,-500.0,0.00040547,30]
[313693571,1707587457134,-757.98,0.00040547,30]
[313693572,1707587457169,-1688.53,0.00040547,30]
[313693573,1707587457205,-1874.32,0.00040547,30]
[313693574,1707587457239,-500.0,0.00040547,30]
[313693575,1707587457285,-500.0,0.00040547,30]
[313693576,1707587457322,-500.0,0.00040547,30]
[313693577,1707587457359,-2851.71,0.00040547,30]
[313693578,1707587457393,-500.0,0.00040547,30]
[313693579,1707587457430,-756.2,0.00040547,30]
[313693580,1707587457465,-1086.17,0.00040547,30]
[313693581,1707587457502,-5736.87,0.00040547,30]
[313693582,1707587457537,-500.0,0.00040547,30]
[313693583,1707587457572,-500.0,0.00040547,30]
[313693584,1707587457608,-500.0,0.00040547,30]
[313693585,1707587457643,-500.0,0.00040547,30]
[313693586,1707587457682,-500.0,0.00040547,30]
[313693587,1707587457718,-673.05,0.00040547,30]
[313693588,1707587457758,-942.13,0.00040547,30]
[313693589,1707587457792,-806.65,0.00040547,30]
[313693590,1707587457828,-2426.36,0.00040547,30]
[313693591,1707587457863,-500.0,0.00040547,30]
[313693592,1707587457900,-1128.55,0.00040547,30]
[313693593,1707587457935,-787.47,0.00040547,30]
[313693594,1707587457970,-500.0,0.00040547,30]
[313693595,1707587458003,-500.0,0.00040547,30]
[313693596,1707587458037,-658.85,0.00040547,30]
[313693597,1707587458070,-575.33,0.00040547,30]
[313693598,1707587458102,-693.78,0.00040547,30]
[313693599,1707587458143,-500.0,0.00040547,30]
[313693600,1707587458179,-500.0,0.00040547,30]
[313693601,1707587458217,-500.0,0.00040547,30]
[313693602,1707587458251,-500.0,0.00040547,30]
[313693603,1707587458287,-500.0,0.00040547,30]
[313693604,1707587458323,-500.0,0.00040821,30]
[313693605,1707587458362,-500.0,0.00040821,30]
[313693606,1707587458398,-500.0,0.00040821,30]
[313693607,1707587458439,-500.0,0.00040821,30]
[313693608,1707587458477,-1279.88,0.00040821,30]
[313693609,1707587458514,-898.34,0.00040821,30]
[313693610,1707587458550,-1568.74,0.00040821,30]
[313693611,1707587458585,-605.13,0.00040821,30]
[313693612,1707587458619,-739.5,0.00040821,30]
[313693613,1707587458656,-500.0,0.00040821,30]
[313693614,1707587458692,-1667.99,0.00040821,30]
[313693615,1707587458728,-500.0,0.00040821,30]
[313693616,1707587458766,-500.0,0.00040821,30]
[313693617,1707587458800,-1541.7,0.00040821,30]
[313693618,1707587458835,-1558.57,0.00040821,30]
[313693619,1707587458870,-500.0,0.00040821,30]
[313693620,1707587458905,-500.0,0.00040821,30]
[313693621,1707587458940,-626.88,0.00040821,30]
[313693622,1707587458975,-594.19,0.00040821,30]
[313693623,1707587459011,-500.0,0.00040821,30]
[313693624,1707587459046,-798.83,0.00040821,30]
[313693625,1707587459083,-500.0,0.00040821,30]
[313693626,1707587459120,-500.0,0.00040821,30]
[313693627,1707587459155,-1555.02,0.00040821,30]
[313693628,1707587459191,-1157.65,0.00040821,30]
[313693629,1707587459228,-626.18,0.00040821,30]
[313693630,1707587459267,-571.81,0.00040821,30]
[313693631,1707587459305,-565.78,0.00040821,30]
[313693632,1707587459345,-500.0,0.00040821,30]
[313693633,1707587459381,-500.0,0.00040821,30]
[313693634,1707587459416,-757.98,0.00040821,30]
[313693635,1707587459453,-1688.53,0.00040821,30]
[313693636,1707587459488,-1874.32,0.00040821,30]
[313693637,1707587459523,-500.0,0.00040821,30]
[313693638,1707587459556,-500.0,0.00040821,30]
[313693639,1707587459592,-500.0,0.00040821,30]
[313693640,1707587459627,-2851.71,0.00040821,30]
[313693641,1707587459664,-500.0,0.00040821,30]
[313693642,1707587459698,-756.2,0.00040821,30]
[313693643,1707587459731,-1086.17,0.00040821,30]
[313693644,1707587459767,-5736.87,0.00040821,30]
[313693645,1707587459800,-500.0,0.00040821,30]
[313693646,1707587459835,-500.0,0.00040821,30]
[313693647,1707587459868,-500.0,0.00040821,30]
[313693648,1707587459902,-500.0,0.00040821,30]
[313693649,1707587459935,-500.0,0.00040821,30]
[313693650,1707587459969,-673.05,0.00040821,30]
[313693651,1707587460002,-942.13,0.00040821,30]
[313693652,1707587460034,-806.65,0.00040821,30]
[313693653,1707587460067,-2426.36,0.00040821,30]
[313693654,1707587460101,-500.0,0.00040821,30]
[313693655,1707587460135,-1128.55,0.00040821,30]
[313693656,1707587460170,-787.47,0.00040821,30]
[313693657,1707587460205,-500.0,0.00040821,30]
[313693658,1707587460239,-500.0,0.00040821,30]
[313693659,1707587460275,-658.85,0.00040821,30]
[313693660,1707587460314,-575.33,0.00040821,30]
[313693661,1707587460349,-693.78,0.00040821,30]
[313693662,1707587460385,-500.0,0.00040821,30]
[313693663,1707587460421,-500.0,0.00040821,30]
[313693664,1707587460466,-500.0,0.00040821,30]
[313693665,1707587460499,-500.0,0.00040821,30]
[313693666,1707587460534,-210.95115808,0.0004098,30]
[313693667,1707587460567,-320.62503683,0.0004098,120]
[313693668,1707587460601,-12479.32334039,0.00041,60]
[313693669,1707587460633,-5000.0,0.00041,30]
[313693670,1707587460667,-500.0,0.00041095,30]
[313693671,1707587460699,-572.16436814,0.00041095,120]
[313693672,1707587460731,-500.0,0.00041095,30]
[313693673,1707587460763,-533.56,0.00041095,30]
[313693674,1707587461001,-500.0,0.00041095,30]
[313693675,1707587461202,-500.0,0.00041095,30]
[313693676,1707587461241,-543.5,0.00041095,30]
[313693677,1707587461279,-500.0,0.00041095,30]
[313693678,1707587461316,-500.0,0.00041095,30]
[313693679,1707587461349,-500.0,0.00041095,30]
[313693680,1707587461383,-643.45,0.00041095,30]
[313693681,1707587461422,-594.35,0.00041095,30]
[313693682,1707587461456,-500.0,0.00041095,30]
[313693683,1707587461488,-500.0,0.00041095,30]
[313693684,1707587461524,-500.0,0.00041095,30]
[313693685,1707587461555,-500.0,0.00041095,30]
[313693686,1707587461587,-500.0,0.00041095,30]
[313693687,1707587461619,-500.0,0.00041095,30]
[313693688,1707587461652,-636.08,0.00041095,30]
[313693689,1707587461685,-500.0,0.00041095,30]
[313693690,1707587461717,-506.82,0.00041095,30]
[313693691,1707587461751,-500.0,0.00041095,30]
[313693692,1707587461783,-363.76980475,0.00041095,30]
[313693693,1707587461815,-500.0,0.00041095,30]
[313693694,1707587461848,-500.0,0.00041095,30]
[313693695,1707587461881,-500.0,0.00041095,30]
[313693696,1707587461914,-500.0,0.00041095,30]
[313693697,1707587461946,-500.0,0.00041095,30]
[313693698,1707587461980,-500.0,0.00041095,30]
[313693699,1707587462014,-500.0,0.00041095,30]
[313693700,1707587462057,-500.0,0.00041095,30]
[313693701,1707587462090,-500.0,0.00041095,30]
[313693702,1707587462122,-500.0,0.00041095,30]
[313693703,1707587462158,-617.86,0.00041095,30]
[313693704,1707587462193,-500.0,0.00041095,30]
[313693705,1707587462226,-500.0,0.00041095,30]
[313693706,1707587462261,-849.56,0.00041095,30]
[313693707,1707587462296,-515.6,0.00041095,30]
[313693708,1707587462330,-500.0,0.00041095,30]
[313693709,1707587462362,-345.79311813,0.00041095,30]
[313693710,1707587462396,-500.0,0.00041095,30]
[313693711,1707587462431,-525.58,0.00041095,30]
[313693712,1707587462466,-977.73,0.00041095,30]
[313693713,1707587462498,-500.0,0.00041095,30]
[313693714,1707587462529,-500.0,0.00041095,30]
[313693715,1707587462561,-1242.56,0.00041095,30]
[313693716,1707587462592,-645.83,0.00041095,30]
[313693717,1707587462624,-500.0,0.00041095,30]
[313693718,1707587462657,-500.0,0.00041095,30]
[313693719,1707587462690,-873.15,0.00041095,30]
[313693720,1707587462721,-500.0,0.00041095,30]
[313693721,1707587462754,-779.81,0.00041095,30]
[313693722,1707587462785,-500.0,0.00041095,30]
[313693723,1707587462817,-519.82,0.00041095,30]
[313693724,1707587462849,-705.9,0.00041095,30]
[313693725,1707587462881,-1052.93,0.00041095,30]
[313693726,1707587462913,-500.0,0.00041095,30]
[313693727,1707587462946,-162.66316041,0.00041095,30]
[313693728,1707587462978,-667.08,0.00041095,30]
[313693729,1707587463013,-754.28,0.00041095,30]
[313693730,1707587463045,-500.0,0.00041095,30]
[313693731,1707587463077,-500.0,0.00041095,30]
[313693732,1707587463109,-1382.71,0.00041095,30]
[313693733,1707587463143,-1223.13,0.00041095,30]
[313693734,1707587463181,-611.01,0.00041095,30]
[313693735,1707587463214,-1057.09,0.00041095,30]
[313693736,1707587463247,-250.0,0.00041095,30]
[313693737,1707587463280,-738.23,0.00041095,30]
[313693738,1707587463312,-500.0,0.00041095,30]
[313693739,1707587463348,-1631.07,0.00041095,30]
[313693740,1707587463381,-765.85,0.00041095,30]
[313693741,1707587463418,-1109.61,0.00041095,30]
[313693742,1707587463452,-1493.22,0.00041095,30]
[313693743,1707587463483,-514.5,0.00041095,30]
[313693744,1707587463514,-500.0,0.00041095,30]
[313693745,1707587463546,-1076.65,0.00041095,30]
[313693746,1707587463578,-308.20363119,0.00041095,30]
[313693747,1707587463610,-1633.0,0.00041095,30]
[313693748,1707587463643,-1151.29,0.00041095,30]
[313693749,1707587463680,-500.0,0.00041095,30]
[313693750,1707587463713,-1429.03,0.00041095,30]
[313693751,1707587463749,-623.04,0.00041095,30]
[313693752,1707587463781,-500.0,0.00041095,30]
[313693753,1707587463812,-500.0,0.00041095,30]
[313693754,1707587463851,-354.64,0.00041095,30]
[313693755,1707587463884,-1288.88,0.00041095,30]
[313693756,1707587463917,-500.0,0.00041095,30]
[313693757,1707587463950,-1221.03,0.00041095,30]
[313693758,1707587463985,-500.0,0.00041095,30]
[313693759,1707587464022,-500.0,0.00041095,30]
[313693760,1707587464056,-677.17,0.00041095,30]
[313693761,1707587464090,-984.72,0.00041095,30]
[313693762,1707587464123,-500.0,0.00041095,30]
[313693763,1707587464156,-1897.56,0.00041095,30]
[313693764,1707587464193,-555.2,0.00041095,30]
[313693765,1707587464227,-500.0,0.00041095,30]
[313693766,1707587464261,-542.42,0.00041095,30]
[313693767,1707587464298,-624.85032983,0.00041095,30]
[313693768,1707587464334,-500.0,0.00041095,30]
[313693769,1707587464369,-500.0,0.00041095,30]
[313693770,1707587464404,-1609.58,0.00041095,30]
[313693771,1707587464438,-1423.85,0.00041095,30]
[313693772,1707587464474,-500.0,0.00041095,30]
[313693773,1707587464508,-500.0,0.00041095,30]
[313693774,1707587464544,-1220.89,0.00041095,30]
[313693775,1707587464581,-500.0,0.00041095,30]
[313693776,1707587464615,-627.76,0.00041095,30]
[313693777,1707587464650,-1575.17,0.00041095,30]
[313693778,1707587464852,-500.0,0.00041095,30]
[313693779,1707587464889,-2197.66,0.00041095,30]
[313693780,1707587464921,-849.0,0.00041095,30]
[313693781,1707587464954,-529.49,0.00041095,30]
[313693782,1707587464987,-500.0,0.00041095,30]
[313693783,1707587465021,-2142.16,0.00041095,30]
[313693784,1707587465076,-1257.96,0.00041095,30]
[313693785,1707587465111,-847.82,0.00041095,30]
[313693786,1707587465147,-500.0,0.00041095,30]
[313693787,1707587465184,-1504.28,0.00041095,30]
[313693788,1707587465221,-773.57,0.00041095,30]
[313693789,1707587465259,-434.04367479,0.00041095,30]
[313693790,1707587465300,-1348.64,0.00041095,30]
[313693791,1707587465340,-1079.05,0.00041095,30]
[313693792,1707587465380,-872.64,0.00041095,30]
[313693793,1707587465428,-500.0,0.00041095,30]
[313693794,1707587465472,-1396.29,0.00041095,30]
[313693795,1707587465513,-500.0,0.00041095,30]
[313693796,1707587465551,-1241.2,0.00041095,30]
[313693797,1707587465587,-500.0,0.00041095,30]
[313693798,1707587465623,-695.42,0.00041095,30]
[313693799,1707587465660,-500.0,0.00041095,30]
[313693800,1707587465698,-500.0,0.00041095,30]
[313693801,1707587465734,-500.0,0.00041095,30]
[313693802,1707587465770,-855.61,0.00041095,30]
[313693803,1707587465806,-527.2,0.00041095,30]
[313693804,1707587465844,-500.0,0.00041095,30]
[313693805,1707587465879,-500.0,0.00041095,30]
[313693806,1707587465917,-500.0,0.00041095,30]
[313693807,1707587465953,-500.0,0.00041095,30]
[313693808,1707587465989,-249.57,0.00041095,30]
[313693809,1707587466026,-537.38,0.00041095,30]
[313693810,1707587466063,-500.0,0.00041095,30]
[313693811,1707587466099,-2058.09,0.00041095,30]
[313693812,1707587466135,-401.24019657,0.00041095,30]
[313693813,1707587466171,-507.56,0.00041095,30]
[313693814,1707587466209,-500.0,0.00041095,30]
[313693815,1707587466245,-500.0,0.00041095,30]
[313693816,1707587466282,-1566.47,0.00041095,30]
[313693817,1707587466319,-500.0,0.00041095,30]
[313693818,1707587466357,-500.0,0.00041095,30]
[313693819,1707587466397,-695.9,0.00041095,30]
[313693820,1707587466436,-639.84,0.00041095,30]
[313693821,1707587466477,-500.0,0.00041095,30]
[313693822,1707587466519,-500.0,0.00041095,30]
[313693823,1707587466562,-500.0,0.00041095,30]
[313693824,1707587466603,-1000.0,0.00041095,120]
[313693825,1707587466643,-500.0,0.00041095,30]
[313693826,1707587466691,-523.41,0.00041095,30]
[313693827,1707587466731,-1209.67,0.00041095,30]
[313693828,1707587466770,-727.64,0.00041095,30]
[313693829,1707587466808,-500.0,0.00041095,30]
[313693830,1707587466845,-1695.73,0.00041095,30]
[313693831,1707587466885,-500.0,0.00041095,30]
[313693832,1707587466925,-644.34,0.00041095,30]
[313693833,1707587466974,-500.0,0.00041095,30]
[313693834,1707587467010,-636.9,0.00041095,30]
[313693835,1707587467052,-552.79,0.00041095,30]
[313693836,1707587467105,-822.03,0.00041095,30]
[313693837,1707587467147,-969.79,0.00041095,30]
[313693838,1707587467191,-500.0,0.00041095,30]
[313693839,1707587467247,-185.87,0.00041095,30]
[313693840,1707587467295,-500.0,0.00041095,30]
[313693841,1707587467348,-519.84,0.00041095,30]
[313693842,1707587467391,-574.94,0.00041095,30]
[313693843,1707587467438,-520.2,0.00041095,30]
[313693844,1707587467482,-726.91,0.00041095,30]
[313693845,1707587467524,-500.0,0.00041095,30]
[313693846,1707587467563,-500.0,0.00041095,30]
[313693847,1707587467601,-500.0,0.00041095,30]
[313693848,1707587467644,-500.0,0.00041095,30]
[313693849,1707587467703,-500.0,0.00041095,30]
[313693850,1707587467741,-1279.88,0.00041095,30]
[313693851,1707587467782,-898.34,0.00041095,30]
[313693852,1707587467819,-1568.74,0.00041095,30]
[313693853,1707587467857,-605.13,0.00041095,30]
[313693854,1707587467894,-739.5,0.00041095,30]
[313693855,1707587467936,-500.0,0.00041095,30]
[313693856,1707587467978,-1667.99,0.00041095,30]
[313693857,1707587468022,-500.0,0.00041095,30]
[313693858,1707587468066,-500.0,0.00041095,30]
[313693859,1707587468105,-1541.7,0.00041095,30]
[313693860,1707587468142,-1558.57,0.00041095,30]
[313693861,1707587468182,-500.0,0.00041095,30]
[313693862,1707587468224,-500.0,0.00041095,30]
[313693863,1707587468261,-594.19,0.00041095,30]
[313693864,1707587468300,-500.0,0.00041095,30]
[313693865,1707587468336,-798.83,0.00041095,30]
[313693866,1707587468374,-500.0,0.00041095,30]
[313693867,1707587468410,-500.0,0.00041095,30]
[313693868,1707587468449,-1555.02,0.00041095,30]
[313693869,1707587468488,-1157.65,0.00041095,30]
[313693870,1707587468532,-626.18,0.00041095,30]
[313693871,1707587468569,-571.81,0.00041095,30]
[313693872,1707587468606,-565.78,0.00041095,30]
[313693873,1707587468643,-500.0,0.00041095,30]
[313693874,1707587468681,-500.0,0.00041095,30]
[313693875,1707587468715,-757.98,0.00041095,30]
[313693876,1707587468750,-1688.53,0.00041095,30]
[313693877,1707587468789,-1874.32,0.00041095,30]
[313693878,1707587468825,-500.0,0.00041095,30]
[313693879,1707587468861,-500.0,0.00041095,30]
[313693880,1707587468897,-2851.71,0.00041095,30]
[313693881,1707587468933,-500.0,0.00041095,30]
[313693882,1707587469139,-756.2,0.00041095,30]
[313693883,1707587469185,-1086.17,0.00041095,30]
[313693884,1707587469230,-5736.87,0.00041095,30]
[313693885,1707587469272,-500.0,0.00041095,30]
[313693886,1707587469314,-500.0,0.00041095,30]
[313693887,1707587469355,-500.0,0.00041095,30]
[313693888,1707587469395,-500.0,0.00041095,30]
[313693889,1707587469437,-673.05,0.00041095,30]
[313693890,1707587469478,-942.13,0.00041095,30]
[313693891,1707587469518,-806.65,0.00041095,30]
[313693892,1707587469556,-2426.36,0.00041095,30]
[313693893,1707587469597,-500.0,0.00041095,30]
[313693894,1707587469639,-1128.55,0.00041095,30]
[313693895,1707587469683,-787.47,0.00041095,30]
[313693896,1707587469726,-500.0,0.00041095,30]
[313693897,1707587469771,-500.0,0.00041095,30]
[313693898,1707587469812,-575.33,0.00041095,30]
[313693899,1707587469851,-658.85,0.00041095,30]
[313693900,1707587469890,-693.78,0.00041095,30]
[313693901,1707587469930,-1000.0,0.00041095,30]
[313693902,1707587469969,-1019.33447957,0.00041095,30]
[313693903,1707587470006,-500.0,0.00041095,30]
[313693904,1707587470045,-500.0,0.00041095,30]
[313693905,1707587470087,-500.0,0.00041095,30]
[313693906,1707587470126,-246.0858754,0.00041095,30]
[313693907,1707587470169,-500.0,0.00041095,30]
[313693908,1707587470235,-500.0,0.00041095,30]
[313693909,1707587470298,-500.0,0.00041095,30]
[313693910,1707587470362,-13884.80951482,0.000411,60]
[313693911,1707587470413,-200.0,0.000412,30]
[313693912,1707587470458,-1000.0,0.000412,30]
[313693913,1707587470503,-500.0,0.00041274,30]
[313693914,1707587470549,-3314.57971,0.00041292,30]
[313693915,1707587470591,-500.0,0.00041369,30]
[313693916,1707587470635,-500.0,0.00041369,30]
[313693917,1707587470683,-533.56,0.00041369,30]
[313693918,1707587470754,-500.0,0.00041369,30]
[313693919,1707587470808,-500.0,0.00041369,30]
[313693920,1707587470852,-543.5,0.00041369,30]
[313693921,1707587470901,-500.0,0.00041369,30]
[313693922,1707587470962,-500.0,0.00041369,30]
[313693923,1707587471020,-500.0,0.00041369,30]
[313693924,1707587471066,-643.45,0.00041369,30]
[313693925,1707587471121,-594.35,0.00041369,30]
[313693926,1707587471168,-500.0,0.00041369,30]
[313693927,1707587471214,-500.0,0.00041369,30]
[313693928,1707587471268,-500.0,0.00041369,30]
[313693929,1707587471310,-500.0,0.00041369,30]
[313693930,1707587471359,-500.0,0.00041369,30]
[313693931,1707587471407,-500.0,0.00041369,30]
[313693932,1707587471452,-636.08,0.00041369,30]
[313693933,1707587471495,-500.0,0.00041369,30]
[313693934,1707587471540,-506.82,0.00041369,30]
[313693935,1707587471584,-500.0,0.00041369,30]
[313693936,1707587471627,-637.37348803,0.00041369,30]
[313693937,1707587471678,-500.0,0.00041369,30]
[313693938,1707587471722,-500.0,0.00041369,30]
[313693939,1707587471766,-500.0,0.00041369,30]
[313693940,1707587471809,-500.0,0.00041369,30]
[313693941,1707587471852,-500.0,0.00041369,30]
[313693942,1707587471896,-500.0,0.00041369,30]
[313693943,1707587471939,-500.0,0.00041369,30]
[313693944,1707587471981,-500.0,0.00041369,30]
[313693945,1707587472021,-500.0,0.00041369,30]
[313693946,1707587472064,-617.86,0.00041369,30]
[313693947,1707587472103,-324.79480436,0.00041369,30]
[313693948,1707587472143,-500.0,0.00041369,30]
[313693949,1707587472184,-849.56,0.00041369,30]
[313693950,1707587472229,-515.6,0.00041369,30]
[313693951,1707587472270,-500.0,0.00041369,30]
[313693952,1707587472314,-585.08522951,0.00041369,30]
[313693953,1707587472357,-525.58,0.00041369,30]
[313693954,1707587472401,-977.73,0.00041369,30]
[313693955,1707587472445,-500.0,0.00041369,30]
[313693956,1707587472493,-500.0,0.00041369,30]
[313693957,1707587472542,-1242.56,0.00041369,30]
[313693958,1707587472589,-645.83,0.00041369,30]
[313693959,1707587472632,-500.0,0.00041369,30]
[313693960,1707587472677,-500.0,0.00041369,30]
[313693961,1707587472719,-873.15,0.00041369,30]
[313693962,1707587472760,-500.0,0.00041369,30]
[313693963,1707587472801,-779.81,0.00041369,30]
[313693964,1707587472841,-500.0,0.00041369,30]
[313693965,1707587472883,-519.82,0.00041369,30]
[313693966,1707587472927,-705.9,0.00041369,30]
[313693967,1707587472975,-1052.93,0.00041369,30]
[313693968,1707587473022,-500.0,0.00041369,30]
[313693969,1707587473063,-667.08,0.00041369,30]
[313693970,1707587473102,-754.28,0.00041369,30]
[313693971,1707587473141,-359.00086365,0.00041369,30]
[313693972,1707587473193,-500.0,0.00041369,30]
[313693973,1707587473236,-1382.71,0.00041369,30]
[313693974,1707587473280,-1223.13,0.00041369,30]
[313693975,1707587473324,-611.01,0.00041369,30]
[313693976,1707587473368,-1057.09,0.00041369,30]
[313693977,1707587473414,-250.0,0.00041369,30]
[313693978,1707587473465,-738.23,0.00041369,30]
[313693979,1707587473508,-500.0,0.00041369,30]
[313693980,1707587473551,-1631.07,0.00041369,30]
[313693981,1707587473592,-765.85,0.00041369,30]
[313693982,1707587473633,-1109.61,0.00041369,30]
[313693983,1707587473678,-1493.22,0.00041369,30]
[313693984,1707587473723,-514.5,0.00041369,30]
[313693985,1707587473766,-500.0,0.00041369,30]
[313693986,1707587473977,-1076.65,0.00041369,30]
[313693987,1707587474023,-1633.0,0.00041369,30]
[313693988,1707587474067,-1151.29,0.00041369,30]
[313693989,1707587474109,-500.0,0.00041369,30]
[313693990,1707587474154,-1429.03,0.00041369,30]
[313693991,1707587474197,-623.04,0.00041369,30]
[313693992,1707587474238,-304.58715305,0.00041369,30]
[313693993,1707587474281,-500.0,0.00041369,30]
[313693994,1707587474322,-1288.88,0.00041369,30]
[313693995,1707587474362,-500.0,0.00041369,30]
[313693996,1707587474403,-1221.03,0.00041369,30]
[313693997,1707587474444,-500.0,0.00041369,30]
[313693998,1707587474489,-500.0,0.00041369,30]
[313693999,1707587474529,-677.17,0.00041369,30]
[313694000,1707587474576,-984.72,0.00041369,30]
[313694001,1707587474620,-500.0,0.00041369,30]
[313694002,1707587474665,-1897.56,0.00041369,30]
[313694003,1707587474710,-555.2,0.00041369,30]
[313694004,1707587474751,-260.73235279,0.00041369,30]
[313694005,1707587474793,-542.42,0.00041369,30]
[313694006,1707587474831,-500.0,0.00041369,30]
[313694007,1707587474874,-500.0,0.00041369,30]
[313694008,1707587474930,-1609.58,0.00041369,30]
[313694009,1707587474971,-1423.85,0.00041369,30]
[313694010,1707587475013,-500.0,0.00041369,30]
[313694011,1707587475061,-500.0,0.00041369,30]
[313694012,1707587475107,-1220.89,0.00041369,30]
[313694013,1707587475152,-500.0,0.00041369,30]
[313694014,1707587475200,-627.76,0.00041369,30]
[313694015,1707587475245,-1575.17,0.00041369,30]
[313694016,1707587475291,-500.0,0.00041369,30]
[313694017,1707587475336,-2197.66,0.00041369,30]
[313694018,1707587475388,-849.0,0.00041369,30]
[313694019,1707587475443,-529.49,0.00041369,30]
[313694020,1707587475491,-500.0,0.00041369,30]
[313694021,1707587475535,-2142.16,0.00041369,30]
[313694022,1707587475577,-1257.96,0.00041369,30]
[313694023,1707587475615,-847.82,0.00041369,30]
[313694024,1707587475653,-500.0,0.00041369,30]
[313694025,1707587475695,-1504.28,0.00041369,30]
[313694026,1707587475735,-773.57,0.00041369,30]
[313694027,1707587475777,-1348.64,0.00041369,30]
[313694028,1707587475820,-1079.05,0.00041369,30]
[313694029,1707587475870,-872.64,0.00041369,30]
[313694030,1707587475911,-500.0,0.00041369,30]
[313694031,1707587475952,-1396.29,0.00041369,30]
[313694032,1707587475995,-500.0,0.00041369,30]
[313694033,1707587476037,-1241.2,0.00041369,30]
[313694034,1707587476078,-500.0,0.00041369,30]
[313694035,1707587476136,-695.42,0.00041369,30]
[313694036,1707587476200,-500.0,0.00041369,30]
[313694037,1707587476260,-615.51550615,0.00041369,30]
[313694038,1707587476309,-500.0,0.00041369,30]
[313694039,1707587476350,-855.61,0.00041369,30]
[313694040,1707587476393,-527.2,0.00041369,30]
[313694041,1707587476440,-500.0,0.00041369,30]
[313694042,1707587476483,-500.0,0.00041369,30]
[313694043,1707587476524,-500.0,0.00041369,30]
[313694044,1707587476566,-500.0,0.00041369,30]
[313694045,1707587476635,-537.38,0.00041369,30]
[313694046,1707587476691,-500.0,0.00041369,30]
[313694047,1707587476735,-2058.09,0.00041369,30]
[313694048,1707587476788,-507.56,0.00041369,30]
[313694049,1707587476831,-500.0,0.00041369,30]
[313694050,1707587476870,-500.0,0.00041369,30]
[313694051,1707587476907,-1566.47,0.00041369,30]
[313694052,1707587476947,-500.0,0.00041369,30]
[313694053,1707587476985,-500.0,0.00041369,30]
[313694054,1707587477025,-695.9,0.00041369,30]
[313694055,1707587477068,-639.84,0.00041369,30]
[313694056,1707587477111,-368.67051449,0.00041369,30]
[313694057,1707587477156,-500.0,0.00041369,30]
[313694058,1707587477204,-500.0,0.00041369,30]